fUSD/lending_fUSD_20250814
["ID","MTS","AMOUNT","RATE_DAILY","PERIOD"]
[379103287,1755141748067,-284.67325583,0.00019684,2]
[379103288,1755141748089,-168.0,0.00019684,2]
[379103289,1755141748108,-284.67325583,0.00019684,2]
[379103290,1755141748127,-435.68171857,0.00019684,2]
[379103291,1755141748145,-435.68171857,0.00019684,2]
[379103292,1755141748201,-168.0,0.00019684,2]
[379103293,1755141748216,-168.0,0.00019684,2]
[379103294,1755141748243,-435.68171857,0.00019684,2]
[379103295,1755141748265,-435.68171857,0.00019684,2]
[379103296,1755141748284,-374.0,0.00019684,2]
[379103297,1755141748303,-150.0,0.00019684,2]
[379103298,1755141748324,-150.99,0.00019684,2]
[379103299,1755141748358,-435.68171857,0.00019684,2]
[379103300,1755141748380,-237.71,0.00019684,2]
[379103301,1755141748395,-435.68171857,0.00019684,2]
[379103302,1755141748425,-168.0,0.00019684,2]
[379103303,1755141748444,-435.68171857,0.00019684,2]
[379103304,1755141748463,-435.68171857,0.00019684,2]
[379103305,1755141748478,-150.0,0.00019684,2]
[379103306,1755141748510,-435.68171857,0.00019684,2]
[379103307,1755141748525,-435.68171857,0.00019684,2]
[379103308,1755141748553,-435.68171857,0.00019684,2]
[379103309,1755141748585,-435.68171857,0.00019684,2]
[379103310,1755141748601,-151.0,0.00019684,2]
[379103311,1755141748617,-281.5055913,0.00019684,2]
[379103312,1755141748640,-160.0,0.00019684,2]
[379103313,1755141748659,-435.68171857,0.00019684,2]
[379103314,1755141748681,-435.68171857,0.00019684,2]
[379103315,1755141748714,-151.0,0.00019684,2]
[379103316,1755141748732,-353.77156043,0.00019684,2]
[379103317,1755141748747,-435.68171857,0.00019684,2]
[379103318,1755141748766,-435.68171857,0.00019684,2]
[379103319,1755141748777,-435.68171857,0.00019684,2]
[379103320,1755141748795,-348.82562581,0.00019684,2]
[379103321,1755141748813,-435.68171857,0.00019684,2]
[379103322,1755141748832,-435.68171857,0.00019684,2]
[379103323,1755141748898,-435.68171857,0.00019684,2]
[379103325,1755141750033,-435.68171857,0.00019684,2]
[379103326,1755141750066,-435.68171857,0.00019684,2]
[379103327,1755141750078,-378.575054,0.00019684,2]
[379103328,1755141750101,-435.68171857,0.00019684,2]
[379103329,1755141750163,-435.68171857,0.00019684,2]
[379103330,1755141750211,-435.68171857,0.00019684,2]
[379103331,1755141750234,-435.68171857,0.00019684,2]
[379103332,1755141750262,-435.68171857,0.00019684,2]
[379103333,1755141750289,-435.68171857,0.00019684,2]
[379103334,1755141750380,-435.68171857,0.00019684,2]
[379103335,1755141750427,-435.68171857,0.00019684,2]
[379103336,1755141750439,-435.68171857,0.00019684,2]
[379103337,1755141750458,-274.01289598,0.00019684,2]
[379103338,1755141750475,-435.68171857,0.00019684,2]
[379103340,1755141768246,-27989.46817912,0.00019684,2]
[379103341,1755141768290,-1000.0,0.00019684,2]
[379103342,1755141768331,-151.0,0.00019732,2]
[379103343,1755141768364,-151.0,0.00019736,2]
[379103344,1755141768398,-151.0,0.0001974,2]
[379103345,1755141768435,-151.0,0.00019768,2]
[379103346,1755141768471,-168.0,0.00019773,2]
[379103347,1755141768506,-162.88,0.00019863,2]
[379103348,1755141768542,-168.0,0.00019888,2]
[379103349,1755141768575,-5000.0,0.000199,2]
[379103350,1755141768608,-155.5399692,0.00019916,2]
[379103351,1755141768643,-150.0,0.00019999,2]
[379103352,1755141768678,-168.0,0.00020133,2]
[379103353,1755141768713,-812.59,0.00020153,2]
[379103354,1755141768746,-151.0,0.0002022,2]
[379103355,1755141768780,-505.13495878,0.00020221,2]
[379103356,1755141768815,-1000.0,0.00020221,2]
[379103357,1755141768848,-500.0,0.00020221,2]
[379103358,1755141768882,-500.0,0.00020221,2]
[379103359,1755141768917,-408.03445272,0.00020221,2]
[379103360,1755141768952,-500.0,0.00020221,2]
[379103361,1755141768988,-168.0,0.00020223,2]
[379103362,1755141769025,-168.0,0.00020224,2]
[379103363,1755141769060,-168.0,0.00020248,2]
[379103364,1755141769095,-168.0,0.00020269,2]
[379103365,1755141769131,-168.0,0.00020283,2]
[379103366,1755141769169,-168.0,0.00020312,2]
[379103367,1755141769453,-168.0,0.0002032,2]
[379103368,1755141769493,-168.0,0.00020334,2]
[379103369,1755141769526,-500.0,0.00020375,2]
[379103370,1755141769559,-159.53260958,0.00020375,2]
[379103371,1755141769593,-168.0,0.00020387,2]
[379103372,1755141769628,-168.0,0.00020422,2]
[379103373,1755141769665,-168.0,0.00020442,2]
[379103374,1755141769702,-250.0,0.00020535,2]
[379103375,1755141769739,-168.0,0.00020548,2]
[379103376,1755141769773,-168.0,0.00020584,2]
[379103377,1755141769807,-300.0,0.00020717,2]
[379103378,1755141769841,-250.0,0.00020717,2]
[379103379,1755141769873,-300.0,0.00020717,2]
[379103380,1755141769906,-300.0,0.00020726,2]
[379103381,1755141769938,-151.0,0.00020768,2]
[379103382,1755141769970,-1500.0,0.00020768,2]
[379103383,1755141770003,-733.83890671,0.00020923,2]
[379103384,1755141770033,-154.42954065,0.00021041,2]
[379103385,1755141770065,-160.0,0.00021041,2]
[379103386,1755141770098,-812.59,0.00021113,2]
[379103387,1755141770131,-1633.0,0.00021283,2]
[379103388,1755141770164,-2000.0,0.00021316,2]
[379103389,1755141770199,-300.0,0.00021369,2]
[379103390,1755141770234,-1576.0,0.00021388,2]
[379103391,1755141770268,-1383.0,0.00021492,2]
[379103392,1755141770302,-1641.0,0.00021596,2]
[379103393,1755141770335,-2500.0,0.00021657,2]
[379103394,1755141770369,-1000.0,0.00021657,2]
[379103395,1755141770402,-843.0,0.00021701,2]
[379103396,1755141770439,-191.80902719,0.00021756,2]
[379103397,1755141770471,-151.2233828,0.00021756,2]
[379103398,1755141770505,-78503.2,0.00021757,2]
[379103399,1755141770537,-608.87030518,0.00021764,2]
[379103400,1755141770570,-517.6759718,0.00021864,2]
[379103402,1755141787252,162.9,0.00013699,2]
[379103403,1755141787384,151.0,0.00019825,2]
[379103404,1755141787454,162.9,0.00020187,2]
[379103405,1755141792632,1000.0,0.00020573,2]
[379103406,1755141795531,151.0,0.00020207,2]
[379103407,1755141803970,2500.0,0.00021601,2]
[379103408,1755141807879,151.0,0.00020645,2]
[379103410,1755141825273,151.0,0.00021252,2]
[379103412,1755141842564,151.0,0.00021722,2]
[379103415,1755141870123,512.13,0.00018544,2]
[379103416,1755141909054,86916.44246845,0.00019,2]
[379103417,1755141944126,-1736.1237708,0.00019,2]
[379103418,1755141987253,12479.73141664,0.00025,30]
[379103420,1755142028075,-215.0,0.00018999,2]
[379103421,1755142028098,-2102.86738293,0.00019,2]
[379103422,1755142028130,-193.00241605,0.00019,2]
[379103423,1755142031082,-2082.15108727,0.00019,2]
[379103424,1755142043405,200.0,0.000186,6]
[379103425,1755142045460,500.0,0.000187,6]
[379103426,1755142047927,800.0,0.000188,6]
[379103427,1755142050010,1100.0,0.000189,6]
[379103434,1755142152081,-608.87030517,0.000189,2]
[379103435,1755142152606,-1241.3984214,0.000189,2]
[379103436,1755142152627,-1556.0,0.00018959,2]
[379103437,1755142152649,-11.04056743,0.00019,2]
[379103449,1755142171367,-232.02176672,0.000189,2]
[379103450,1755142175719,333.8,0.00024685,30]
[379103455,1755142194321,-159.74212284,0.000187,2]
[379103456,1755142197254,-477.55657352,0.000187,2]
[379103457,1755142199858,-247.42867286,0.000187,2]
[379103458,1755142202924,-258.41586916,0.00018699,2]
[379103459,1755142203505,4000.0,0.0002,4]
[379103461,1755142206118,-283.19570603,0.00018699,2]
[379103462,1755142207763,-271.05116495,0.00018699,2]
[379103463,1755142210750,-235.78086738,0.00018699,2]
[379103464,1755142210788,6540.33802973,0.00025,30]
[379103468,1755142214708,-151.55639248,0.00018699,2]
[379103469,1755142214731,-2.78075048,0.00018699,2]
[379103470,1755142216487,-166.79452366,0.00018699,2]
[379103471,1755142219406,-130.42472586,0.00018699,2]
[379103472,1755142219429,-62.09635759,0.000187,2]
[379103474,1755142220989,-183.43767099,0.000187,2]
[379103475,1755142223733,-4.46597142,0.000187,2]
[379103476,1755142223756,-387.09233189,0.000187,2]
[379103477,1755142226074,-155.99,0.000187,2]
[379103478,1755142227683,-395.65879811,0.000187,2]
[379103479,1755142230297,-287.94272704,0.000187,2]
[379103489,1755142231638,-4380.53002011,0.000187,2]
[379103493,1755142233598,-211.84478321,0.000187,2]
[379103494,1755142235964,-200.0,0.000187,2]
[379103496,1755142237091,-184.77798799,0.000187,2]
[379103658,1755142239561,-15662.09811917,0.000187,2]
[379103659,1755142239576,-70.50284223,0.000189,2]
[379103660,1755142239591,-159.34830223,0.000189,2]
[379103661,1755142239607,-5776.05307197,0.000189,2]
[379103662,1755142239623,-158.17281993,0.000189,2]
[379103663,1755142239638,-1609.27815482,0.000189,2]
[379103664,1755142239652,-1034.4986845,0.000189,2]
[379103665,1755142239667,-5776.05307194,0.00018965,2]
[379103666,1755142239682,-3438565.49288422,0.00019,2]
[379103669,1755142239698,-130373.73043967,0.00019,2]
[379103845,1755142241423,-3011.10720132,0.00019,2]
[379103847,1755142241434,-1000.0,0.00019,2]
[379103849,1755142241445,-24706.28293501,0.00019,2]
[379103908,1755142242119,-254.4711897,0.00019,2]
[379103910,1755142242131,-8596.55573761,0.00019,2]
[379103912,1755142242142,-3996407.37659357,0.00019,2]
[379103914,1755142242152,-5776.05307194,0.0001903,2]
[379103915,1755142242160,-5776.05307194,0.00019096,2]
[379103917,1755142242170,-5776.05307194,0.00019161,2]
[379103919,1755142242179,-5776.05307194,0.00019226,2]
[379103921,1755142242187,-5776.05307194,0.00019291,2]
[379103923,1755142242197,-5776.05307194,0.00019357,2]
[379103924,1755142242206,-5776.05307194,0.00019422,2]
[379103926,1755142242215,-5776.05307194,0.00019487,2]
[379103928,1755142242225,-300.0,0.00019787,2]
[379103930,1755142242234,-151.0,0.00020485,2]
[379103933,1755142242243,-1680.0,0.00020488,2]
[379103935,1755142242252,-250.0,0.00020569,2]
[379103936,1755142242262,-1000.0,0.00020573,2]
[379103938,1755142242271,-151.0,0.00020628,2]
[379103940,1755142242280,-151.0,0.00020664,2]
[379103942,1755142242289,-300.0,0.000209,2]
[379103944,1755142242298,-150.99,0.00020918,2]
[379103945,1755142242307,-9999.99,0.00020918,2]
[379103947,1755142242317,-173.0,0.00020967,2]
[379103949,1755142242326,-1168.22359228,0.00021,2]
[379103951,1755142242335,-417.0,0.000211,2]
[379103953,1755142242344,-217.36846964,0.000215,2]
[379103955,1755142242353,-1000.0,0.00021601,2]
[379103957,1755142242363,-2500.0,0.00021601,2]
[379103958,1755142242372,-500.0,0.000217,2]
[379103960,1755142242381,-500.0,0.000217,2]
[379103962,1755142242390,-500.0,0.000217,2]
[379103964,1755142242399,-500.0,0.0002185,2]
[379103966,1755142242409,-200.0,0.00021851,2]
[379103967,1755142242418,-644.89,0.00021886,2]
[379103969,1755142242427,-10854.4411831,0.00021903,2]
[379103971,1755142242436,-150.56278338,0.00021918,2]
[379103973,1755142242445,-520.17900091,0.00021918,2]
[379103975,1755142242454,-15639.03364653,0.0002199,2]
[379103977,1755142242463,-505.0,0.00022,2]
[379103979,1755142242472,-517.0,0.00022,2]
[379103981,1755142242481,-500.0,0.00022,2]
[379103983,1755142242491,-566.37,0.00022,2]
[379103985,1755142242500,-812.59,0.00022072,2]
[379103987,1755142242509,-300.0,0.00022096,2]
[379103989,1755142242518,-235.18018332,0.0002211,2]
[379103991,1755142242527,-1009.56770731,0.00022248,2]
[379103993,1755142242537,-1000.0,0.00022248,2]
[379103995,1755142242546,-516.63991155,0.00022248,2]
[379103997,1755142242555,-225.03294862,0.00022398,2]
[379103999,1755142242565,-2351.0,0.00022447,2]
[379104000,1755142242575,-187.2,0.00022452,2]
[379104002,1755142242583,-3120.78109616,0.000225,2]
[379104004,1755142242592,-280.70993972,0.00022739,2]
[379104006,1755142242602,-512.11325738,0.00022796,2]
[379104008,1755142242611,-812.59,0.00023032,2]
[379104010,1755142242620,-158.17281992,0.00023238,2]
[379104011,1755142242630,-1034.49868449,0.00023238,2]
[379104013,1755142242640,-505.0,0.00023758,3]
[379104015,1755142242649,-40136.86682405,0.00024,5]
[379104017,1755142242658,-50367.93781274,0.00024,2]
[379104019,1755142242667,-5270.068179,0.000241,2]
[379104021,1755142242676,-186.10248514,0.00024138,2]
[379104022,1755142242685,-2500.0,0.00024153,2]
[379104024,1755142242694,-2500.0,0.00024153,2]
[379104026,1755142242703,-3615.18567949,0.0002421,2]
[379104028,1755142242712,-187.2,0.00024304,2]
[379104030,1755142242721,-566.37,0.00024336,2]
[379104031,1755142242730,-5687.66,0.000245,2]
[379104033,1755142242739,-3292.0,0.00024594,2]
[379104035,1755142242748,-644.89,0.00024622,2]
[379104037,1755142242757,-1000.0,0.00024658,2]
[379104039,1755142242770,-200.0,0.00024794,2]
[379104041,1755142242779,-300.0,0.00024794,2]
[379104043,1755142242787,-1386.78395259,0.00024794,2]
[379104044,1755142242796,-158.71463994,0.00024794,2]
[379104046,1755142242806,-271229.444698,0.000248,3]
[379104048,1755142242815,-458.13769775,0.000248,3]
[379104050,1755142242825,-211.86673127,0.000248,3]
[379104052,1755142242834,-5702.52,0.00024809,2]
[379104054,1755142242846,-308701.028863,0.000249,3]
[379104056,1755142242856,-250.0,0.00024973,2]
[379104058,1755142242867,-160.77199524,0.00025,3]
[379104060,1755142242876,-1594.6066723,0.00025,7]
[379104061,1755142242886,-159.0,0.00025,7]
[379104063,1755142242894,-15000.0,0.0002501,2]
[379104065,1755142242904,-458.13769775,0.00025083,2]
[379104067,1755142242913,-211.86673127,0.00025083,2]
[379104069,1755142242922,-160.0,0.00025105,2]
[379104071,1755142242931,-666.0,0.0002517,3]
[379104072,1755142242940,-905.53,0.0002536,2]
[379104074,1755142242949,-3322.89,0.00025396,2]
[379104076,1755142242959,-1193.29,0.00025396,120]
[379104078,1755142242968,-505.0,0.00025515,5]
[379104081,1755142242977,-762.0,0.00025543,2]
[379104084,1755142242987,-170.0,0.0002584,7]
[379104086,1755142242996,-4419.57174433,0.00026,2]
[379104088,1755142243005,-525.6147177,0.00026,2]
[379104090,1755142243014,-4433.65,0.00026,2]
[379104092,1755142243023,-156.40661169,0.00026,2]
[379104095,1755142243033,-187.2,0.00026157,2]
[379104096,1755142243043,-311.1,0.00026163,2]
[379104099,1755142243056,-40080.6576792,0.000265,2]
[379104104,1755142243066,-4000.0,0.00026667,4]
[379104106,1755142243076,-566.37,0.00026672,7]
[379104109,1755142243086,-162.9,0.00026676,2]
[379104111,1755142243096,-1000.0,0.00026842,2]
[379104113,1755142243105,-4609.0,0.00026947,2]
[379104115,1755142243114,-1468.49,0.00027098,2]
[379104116,1755142243125,-505.0,0.00027273,7]
[379104117,1755142243135,-644.89,0.00027358,120]
[379104118,1755142243144,-4013.81208389,0.0002739,2]
[379104119,1755142243153,-7928.68197488,0.0002739,2]
[379104120,1755142243162,-150.0,0.00027397,2]
[379104121,1755142243171,-150.0,0.00027397,7]
[379104122,1755142243180,-500.0,0.00027397,7]
[379104123,1755142243189,-150.0,0.00027397,7]
[379104124,1755142243202,-321.0,0.00027397,7]
[379104125,1755142243211,-300.0,0.00027397,2]
[379104126,1755142243220,-165.37,0.00027397,80]
[379104127,1755142243230,-322.6107,0.00027532,2]
[379104128,1755142243239,-326.15394367,0.00027533,2]
[379104129,1755142243248,-1085.41404167,0.00027533,2]
[379104130,1755142243258,-266.9253084,0.00027547,7]
[379104131,1755142243267,-150.0,0.00027547,7]
[379104132,1755142243277,-200.0,0.00027547,7]
[379104133,1755142243286,-229.6777927,0.00027547,7]
[379104134,1755142243295,-257.4864739,0.00027547,7]
[379104135,1755142243304,-150.73556272,0.00027547,7]
[379104136,1755142243314,-150.0,0.00027547,7]
[379104137,1755142243325,-500.0,0.00027547,7]
[379104138,1755142243335,-151.73867188,0.00027547,7]
[379104139,1755142243344,-277.27269552,0.00027547,7]
[379104140,1755142243354,-150.0,0.00027547,7]
[379104142,1755142243363,-150.0,0.00027547,2]
[379104144,1755142243373,-150.0,0.00027547,7]
[379104145,1755142243382,-150.0,0.00027547,7]
[379104148,1755142243392,-150.0,0.00027547,7]
[379104150,1755142243401,-150.0,0.00027547,2]
[379104152,1755142243411,-500.0,0.00027547,7]
[379104154,1755142243419,-150.0,0.00027547,7]
[379104155,1755142243429,-158.17281992,0.00027575,2]
[379104158,1755142243438,-1034.49868449,0.00027575,2]
[379104160,1755142243447,-203.46966659,0.00027588,3]
[379104162,1755142243457,-4259.23,0.00027655,2]
[379104164,1755142243466,-500.0,0.00027671,7]
[379104166,1755142243476,-150.0,0.00027671,7]
[379104168,1755142243485,-211.86673127,0.00027821,7]
[379104170,1755142243495,-150.0,0.00027821,7]
[379104172,1755142243504,-150.0,0.00027821,7]
[379104174,1755142243513,-600.0,0.00027821,7]
[379104176,1755142243523,-150.0,0.00027821,7]
[379104178,1755142243532,-200.0,0.00027821,7]
[379104180,1755142243541,-500.0,0.00027821,7]
[379104182,1755142243551,-150.0,0.00027821,7]
[379104184,1755142243560,-151.0,0.00027911,3]
[379104186,1755142243569,-151.0,0.00027911,3]
[379104188,1755142243579,-151.0,0.00027911,3]
[379104190,1755142243588,-151.0,0.00027911,3]
[379104192,1755142243598,-151.0,0.00027911,3]
[379104194,1755142243608,-151.0,0.00027911,3]
[379104196,1755142243618,-151.0,0.00027911,3]
[379104198,1755142243628,-151.0,0.00027911,3]
[379104200,1755142243638,-151.0,0.00027911,3]
[379104202,1755142243647,-151.0,0.00027911,3]
[379104204,1755142243657,-151.0,0.00027911,3]
[379104206,1755142243666,-151.0,0.00027911,3]
[379104208,1755142243676,-151.0,0.00027911,3]
[379104210,1755142243685,-151.0,0.00027911,3]
[379104212,1755142243694,-151.0,0.00027911,3]
[379104214,1755142243703,-151.0,0.00027911,3]
[379104216,1755142243712,-151.0,0.00027911,3]
[379104218,1755142243721,-151.0,0.00027911,3]
[379104220,1755142243731,-151.0,0.00027911,3]
[379104222,1755142243740,-151.0,0.00027911,3]
[379104224,1755142243749,-151.71444599,0.00027911,3]
[379104226,1755142243759,-269.85251107,0.00027911,3]
[379104228,1755142243772,-177.94939297,0.00027911,3]
[379104230,1755142243782,-500.0,0.00027945,7]
[379104232,1755142243791,-150.0,0.00027945,7]
[379104234,1755142243800,-5000.0,0.00027997,2]
[379104236,1755142243809,-201.58909598,0.00028095,7]
[379104238,1755142243819,-201.28997618,0.00028095,7]
[379104240,1755142243828,-200.0,0.00028095,7]
[379104242,1755142243837,-515.87391484,0.00028095,7]
[379104244,1755142243848,-230.2,0.00028095,7]
[379104246,1755142243857,-150.0,0.00028219,7]
[379104248,1755142243866,-262.62235272,0.00028219,7]
[379104250,1755142243877,-500.0,0.00028533,5]
[379104252,1755142243887,-250.0,0.00028611,2]
[379104254,1755142243896,-176.6,0.00028712,3]
[379104256,1755142243905,-150.0,0.00028767,2]
[379104258,1755142243914,-511.98,0.00028866,2]
[379104260,1755142243924,-6086.0,0.00028866,2]
[379104262,1755142243934,-2096.729,0.00028866,2]
[379104264,1755142243943,-818.0,0.00028866,2]
[379104287,1755142244156,-511.98,0.00028881,2]
[379104290,1755142244178,-151.0,0.00028882,3]
[379104293,1755142244200,-151.0,0.00028882,3]
[379104295,1755142244210,-151.0,0.00028882,3]
[379104297,1755142244220,-151.0,0.00028882,3]
[379104299,1755142244230,-151.0,0.00028882,3]
[379104301,1755142244239,-151.0,0.00028882,3]
[379104303,1755142244248,-151.0,0.00028882,3]
[379104305,1755142244257,-1217.0,0.00028882,3]
[379104307,1755142244266,-151.0,0.00028882,3]
[379104309,1755142244275,-151.0,0.00028882,3]
[379104311,1755142244284,-1217.0,0.00028882,3]
[379104313,1755142244293,-151.0,0.00028882,3]
[379104315,1755142244302,-151.0,0.00028882,3]
[379104316,1755142244313,-1217.0,0.00028882,3]
[379104318,1755142244323,-151.0,0.00028882,3]
[379104320,1755142244332,-1217.0,0.00028882,3]
[379104322,1755142244341,-151.0,0.00028882,3]
[379104324,1755142244351,-1217.0,0.00028882,3]
[379104326,1755142244360,-151.0,0.00028882,3]
[379104328,1755142244370,-151.0,0.00028882,3]
[379104330,1755142244380,-151.0,0.00028882,3]
[379104333,1755142244390,-1217.0,0.00028882,3]
[379104334,1755142244399,-151.0,0.00028882,3]
[379104336,1755142244408,-151.0,0.00028882,3]
[379104338,1755142244418,-1217.0,0.00028882,3]
[379104340,1755142244427,-151.0,0.00028882,3]
[379104342,1755142244436,-151.0,0.00028882,3]
[379104344,1755142244446,-1217.0,0.00028882,3]
[379104346,1755142244455,-151.0,0.00028882,3]
[379104349,1755142244465,-1217.0,0.00028882,3]
[379104351,1755142244475,-151.0,0.00028882,3]
[379104353,1755142244484,-1217.0,0.00028882,3]
[379104355,1755142244494,-151.0,0.00028882,3]
[379104357,1755142244503,-1217.0,0.00028882,3]
[379104359,1755142244512,-151.0,0.00028882,3]
[379104361,1755142244522,-1217.0,0.00028882,3]
[379104363,1755142244531,-151.0,0.00028882,3]
[379104365,1755142244540,-1217.0,0.00028882,3]
[379104367,1755142244550,-240.18493016,0.00028882,3]
[379104369,1755142244559,-1217.0,0.00028882,3]
[379104371,1755142244569,-1217.0,0.00028882,3]
[379104373,1755142244578,-791.34977557,0.00028882,3]
[379104375,1755142244588,-511.98,0.00028896,2]
[379104377,1755142244597,-334.5472959,0.00028901,2]
[379104379,1755142244606,-511.98,0.00028911,2]
[379104381,1755142244615,-150.0,0.00028917,7]
[379104383,1755142244625,-511.98,0.00028926,2]
[379104385,1755142244635,-511.98,0.00028942,2]
[379104387,1755142244644,-511.98,0.00028957,2]
[379104389,1755142244654,-511.98,0.00028972,2]
[379104391,1755142244664,-511.98,0.00028987,2]
[379104393,1755142244673,-50963.30331772,0.00029,2]
[379104395,1755142244683,-511.98,0.00029002,2]
[379104397,1755142244692,-566.37,0.00029008,30]
[379104399,1755142244702,-511.98,0.00029018,2]
[379104401,1755142244711,-505.0,0.0002903,9]
[379104403,1755142244720,-511.98,0.00029033,2]
[379104405,1755142244729,-511.98,0.00029048,2]
[379104407,1755142244739,-511.98,0.00029063,2]
[379104409,1755142244748,-511.98,0.00029079,2]
[379104411,1755142244758,-1000.0,0.00029081,5]
[379104413,1755142244771,-511.98,0.00029094,2]
[379104415,1755142244780,-511.98,0.00029109,2]
[379104417,1755142244790,-511.98,0.00029124,2]
[379104419,1755142244799,-511.98,0.00029139,2]
[379104421,1755142244808,-511.98,0.00029155,2]
[379104423,1755142244818,-6303.0,0.00029524,2]
[379104425,1755142244827,-1500.0,0.00029629,5]
[379104427,1755142244837,-159.34830223,0.00029744,2]
[379104429,1755142244846,-76931.35545006,0.000299,2]
[379104431,1755142244855,-1023.79921659,0.000299,120]
[379104433,1755142244865,-232.0831295,0.0002999,2]
[379104435,1755142244875,-1092.45458532,0.0003,120]
[379104437,1755142244884,-2723.46189044,0.0003,5]
[379104439,1755142244893,-652.69135369,0.0003,120]
[379104441,1755142244903,-411.0,0.0003,14]
[379104443,1755142244912,-19442.03044623,0.0003,2]
[379104445,1755142244921,-399.999999,0.0003,2]
[379104448,1755142244931,-736.00660795,0.0003,120]
[379104450,1755142244941,-986.55433908,0.0003,60]
[379104452,1755142244950,-345.0,0.0003,120]
[379104453,1755142244959,-162.1501639,0.0003,2]
[379104455,1755142244968,-644.89,0.00030094,120]
[379104457,1755142244978,-1800.0,0.0003013,120]
[379104460,1755142244988,-248.8056417,0.0003013,120]
[379104462,1755142244997,-13540.70678415,0.0003013,2]
[379104463,1755142245006,-445.89766837,0.0003013,5]
[379104466,1755142245015,-661.43083947,0.0003013,120]
[379104468,1755142245025,-451.24249369,0.0003013,120]
[379104470,1755142245035,-150.0,0.00030136,2]
[379104472,1755142245045,-429.817745,0.00030136,120]
[379104474,1755142245054,-192.1745125,0.00030137,120]
[379104476,1755142245063,-1421.41437075,0.00030177,5]
[379104478,1755142245073,-1000.0,0.00030197,2]
[379104480,1755142245083,-346.92554585,0.0003027,2]
[379104482,1755142245092,-150.0,0.00030287,7]
[379104484,1755142245101,-762.0,0.00030385,2]
[379104486,1755142245111,-411.0,0.00030411,14]
[379104488,1755142245120,-505.0,0.00030788,10]
[379104490,1755142245130,-333.8,0.00030909,30]
[379104492,1755142245143,-4296.33906345,0.00031,120]
[379104494,1755142245153,-1450.5628048,0.00031,2]
[379104496,1755142245162,-1296.0,0.00031061,2]
[379104498,1755142245172,-982.0,0.00031061,2]
[379104500,1755142245181,-1655.0,0.00031061,2]
[379104502,1755142245190,-598.0,0.00031061,2]
[379104504,1755142245199,-893.0,0.00031061,2]
[379104506,1755142245208,-1176.859,0.00031061,2]
[379104508,1755142245218,-7180.50072495,0.0003121,2]
[379104510,1755142245227,-566.37,0.00031344,30]
[379104512,1755142245236,-150.0,0.00031506,2]
[379104514,1755142245247,-359.76179104,0.00031639,2]
[379104516,1755142245256,-411.0,0.00031644,14]
[379104519,1755142245265,-200.0,0.00031657,7]
[379104521,1755142245275,-150.0,0.0003177,2]
[379104523,1755142245284,-3265.51160292,0.0003177,2]
[379104525,1755142245293,-3057.0,0.000318,3]
[379104527,1755142245302,-6086.0,0.00031866,2]
[379104529,1755142245312,-2028.0,0.00031866,2]
[379104531,1755142245321,-810.0,0.00031866,2]
[379104533,1755142245332,-158.17281992,0.00031913,3]
[379104535,1755142245341,-1034.49868449,0.00031913,2]
[379104537,1755142245351,-16040.75129165,0.00032,120]
[379104539,1755142245360,-5513.0,0.000324,5]
[379104541,1755142245369,-505.0,0.00032545,12]
[379104543,1755142245379,-4717.82533192,0.000328,2]
[379104545,1755142245389,-644.89,0.00032829,120]
[379104548,1755142245399,-172.95278294,0.00032876,2]
[379104550,1755142245408,-160.31463368,0.00032877,7]